[Event "European Women-ch 2023"]
[Site "Petrovac"]
[Date "2023.03.25"]
[Round "7.18"]
[White "Balajayeva, Khanim"]
[Black "Froewis, Annika"]
[Result "0-1"]
[Annotator "TA"]
[ECO "A18"]
[WhiteElo "2372"]
[BlackElo "2123"]
[PlyCount "74"]
[EventDate "2023.03.15"]
[EventType "swiss"]
[EventCountry "MNE"]
[SourceTitle "playchess.com"]
[Source "ChessBase"]
[SourceQuality "1"]
[TimeControl "40/5400+30:1800+30"]

{[%evp 18,74,20,13,172,179,266,271,275,283,279,288,276,248,233,253,260,265,243,0,2,6,4,4,6,6,6,10,3,8,12,3,3,0,9,4,6,0,0,-29,0,0,0,-22,-15,-372,-368,-364,-314,-711,-179,-1080,-1035,-29985,-29986,-29986,-15,-29998,-29999]} 1. c4 {[%emt 0:00:03]} e6 {[%emt 0:00:16]} 2. Nc3 {[%emt 0:00:07]} Nf6 {[%emt 0:00:13]} 3. e4 {[%emt 0:00:29]} d5 {[%emt 0:00:17]} 4. e5 {[%emt 0:01:05]} d4 {[%emt 0:00:47]} 5. exf6 {[%emt 0:00:50]} dxc3 {[%emt 0:00:08]} 6. bxc3 {[%emt 0:00:09]} Qxf6 {[%emt 0:00:13]} 7. d4 {[%emt 0:00:22]} e5 {[%emt 0:01:22]} 8. Nf3 {[%emt 0:04:13]} exd4 {[%emt 0:00:39]} 9. Bg5 {[%emt 0:00:42]} Qe6+ {[%emt 0:00:44]} 10. Be2 {[%emt 0:00:08] [#]} Qg6 $146 {[%emt 0:07:32] [#] A18: English Opening: Flohr-Mikenas System (1 c4 Nf6 2 Nc3 e6 3 e4).} (10... h6 $11 11. Nxd4 Qd7) ({Predecessor:} 10... Be7 11. Nxd4 Qe5 12. Bxe7 Qxe7 13. O-O O-O 14. Re1 Qf6 15. Nb5 Na6 16. Qd4 Qxd4 17. cxd4 Rd8 18. c5 Bd7 {1-0 Dubov,D (2714)-Aronian,L (2782) Speed Chess Chess.com INT blitz 2021 (1.25)}) 11. O-O $1 $18 {[%emt 0:12:33]} (11. Qxd4 $6 Nc6 12. Qe3+ Qe6 $14) (11. cxd4 $6 Bb4+ 12. Kf1 O-O $14) 11... Bd6 {[%emt 0:11:13]} (11... Nc6 $142) 12. cxd4 {[%emt 0:15:26] c5 is the strong threat.} (12. Bd3 $6 Qh5 $16) 12... h6 {[%emt 0:09:23] White has a decisive advantage.} 13. Bd3 {[%emt 0:13:27]} Bxh2+ {[%emt 0:05:40]} 14. Kh1 {[%emt 0:03:35]} Qh5 {[%emt 0:02:53]} 15. Re1+ {[%emt 0:01:41]} (15. Nxh2 hxg5 16. Qxh5 Rxh5 $11) 15... Be5+ {[%emt 0:11:46]} 16. Bh4 {[%emt 0:00:15]} Nc6 {[%emt 0:02:42][%cal Oc8g4]} 17. Kg1 {[%emt 0:10:23][%cal Rf3e5]} (17. Nxe5 Qxh4+ 18. Kg1 O-O $11) (17. dxe5 $6 Bg4 $16) (17. Rxe5+ $6 Nxe5 18. Qe2 (18. dxe5 g5 $17 {[%mdl 64] Pin}) 18... O-O 19. Qxe5 (19. Nxe5 $2 Qxh4+ 20. Kg1 Qxd4 $19) 19... Qxe5 20. Nxe5 c6 $16) 17... Bg4 {[%emt 0:02:44] [#]} 18. Be4 {[%emt 0:11:11]} (18. dxe5 Bxf3 19. Qxf3 Qxh4 $16) (18. Bg3 $1 $18 {[%cal Od1a4]} O-O-O 19. dxe5) 18... O-O $11 {[%emt 0:07:20][%cal Oc6d4] Hoping for ...Nxd4!} 19. dxe5 {[%emt 0:10:21]} (19. Bxc6 $5 Bh2+ $8 20. Kxh2 bxc6 21. Kg1 Bxf3 {[%mdl 64] Remove Defender} 22. Qxf3 Qxh4 23. Rad1 $11) 19... Bxf3 {[%emt 0:01:47][%mdl 64] Remove Defender} 20. Qxf3 {[%emt 0:00:02]} Qxh4 {[%emt 0:01:14]} 21. Bxc6 {[%emt 0:00:20]} bxc6 {[%emt 0:00:10]} 22. Qxc6 {[%emt 0:00:01]} Qe7 {[%emt 0:01:21]} 23. Rad1 {[%emt 0:01:53]} Qa3 {[%emt 0:05:36]} (23... Rad8 $5 {[%cal Rd8d1]}) 24. Rd7 {[%emt 0:03:11]} Qxa2 {[%emt 0:05:27]} 25. Rxc7 {[%emt 0:01:38]} (25. Qxc7 {simplifies} Rac8 26. Qxa7 Qxa7 27. Rxa7 Rxc4 28. g3) 25... Rae8 {[%emt 0:02:59][%cal Oe8e5]} 26. Qd5 {[%emt 0:00:59]} a5 {[%emt 0:01:04][%cal Ba7a5,Ba5a4][%mdl 32]} (26... Rd8 {simplifies} 27. Qc5 Qd2 28. Qe3 Qxe3 29. Rxe3 a5) 27. f4 {[%emt 0:04:21]} a4 {[%emt 0:01:58]} 28. f5 {[%emt 0:02:11] And now e6 would win.} a3 {[%emt 0:03:04]} (28... Qb2 $5 {[%cal Ra4a3]}) 29. f6 {[%emt 0:02:19]} Qb2 {[%emt 0:09:16] ...a2 would be deadly.} 30. Rb7 {[%emt 0:00:44]} Qc3 {[%emt 0:00:24] Some like it hot} 31. Re2 {[%emt 0:00:44][%mdl 8192]} (31. Qe4 $11 {and White is okay.}) 31... a2 $19 {[%emt 0:02:27][%mdl 64] Deflection} (31... gxf6 32. e6 Rxe6 33. Rxe6 $11) 32. Rxa2 {[%emt 0:00:12]} Rxe5 {[%emt 0:01:32] ( -> ...Qe1+)} (32... gxf6 33. Qf3 Qc1+ 34. Qf1 (34. Kh2 Rxe5 35. Rf2 Qxc4 $15) 34... Qxf1+ 35. Kxf1 $15) 33. Qd2 {[%emt 0:00:39]} (33. Qf3 Qd4+ 34. Kh2 Qh4+ 35. Qh3 Qxf6 36. Rb5) 33... Qxc4 $2 {[%emt 0:00:48]} ({Worse is} 33... Re1+ 34. Kf2 Qxf6+ 35. Kxe1 $17) (33... Qg3 {White must now prevent ...Re1+.} 34. Rb1 Rh5) 34. fxg7 $2 {[%emt 0:00:32]} (34. Rb1) 34... Qc5+ {[%emt 0:00:46]} ({Stronger than} 34... Kxg7 35. Rc2 Qd5 36. Qxd5 Rxd5 37. g3 $15) 35. Qf2 {[%emt 0:00:27]} Re1+ {[%emt 0:00:20]} ({Weaker is} 35... Kxg7 36. Qxc5 Rxc5 37. g3 $15) 36. Kh2 {[%emt 0:00:03]} Qe5+ $2 {[%emt 0:01:33]} (36... Qh5+ {mates} 37. Kg3 Qe5+ 38. Kf3 Qc3+ 39. Kf4 Rfe8 40. Qxe1 Qxe1 41. Rb3 Qe5+ 42. Kf3 Qd5+ 43. Kf2 Qxb3 44. Re2 Qb6+ 45. Ke1 Qg1+ 46. Kd2 Rd8+ 47. Kc2 Qd4 48. Re7 Qc4+ 49. Kb2 Rd2+ 50. Kb1 Qf1+ 51. Re1 Qxe1#) 37. g3 $2 {[%emt 0:00:14][%mdl 8192]} (37. Qg3 $11 Qh5+ 38. Qh3 Qxh3+ 39. Kxh3 Kxg7 40. g4) 37... Qh5+ {[%emt 0:00:06] Beautiful play by Froewis!   Weighted Error Value: White=0.90/Black=0.40} 0-1

[Event "European Women-ch 2023"]
[Site "Petrovac"]
[Date "2023.03.25"]
[Round "7.18"]
[White "Bakalarz, Grazyna"]
[Black "Maione, Melissa"]
[Result "1/2-1/2"]
[Annotator "TA"]
[ECO "B22"]
[WhiteElo "1847"]
[BlackElo "2028"]
[PlyCount "136"]
[EventDate "2023.03.15"]
[EventType "swiss"]
[EventCountry "MNE"]
[SourceTitle "playchess.com"]
[Source "ChessBase"]
[SourceQuality "1"]
[TimeControl "40/5400+30:1800+30"]

{[%evp 10,136,27,27,26,34,36,29,25,0,0,11,14,2,10,10,12,9,7,0,0,-36,-4,-29,0,-20,11,0,0,0,0,-15,-14,-19,-14,-103,-102,-102,-102,-110,-110,-110,-104,-102,-101,-119,-110,-112,-118,-179,-131,-135,-114,-135,-137,-235,-128,-141,-52,-120,-97,-89,-24,-42,163,166,166,168,166,164,162,162,190,107,107,94,107,107,115,118,122,115,210,208,197,198,193,115,115,115,137,122,120,0,119,106,112,89,89,30,30,30,30,29,200,200,8831,6424,5742,5718,29940,29943,29949,12621,29946,11470,5397,253,401,410,414,8,8,8,8,8,8,8,8]} 1. e4 {[%emt 0:00:03]} c5 {[%emt 0:00:11]} 2. c3 {[%emt 0:00:12]} d5 {[%emt 0:00:15]} 3. exd5 {[%emt 0:00:07]} Qxd5 {[%emt 0:00:09]} 4. d4 {[%emt 0:00:28]} Nc6 {[%emt 0:00:25]} 5. Nf3 {[%emt 0:00:32]} Bf5 {[%emt 0:00:39]} 6. Be3 {[%emt 0:05:22]} cxd4 {[%emt 0:02:20] B22: Sicilian: 2 c3.} 7. Nxd4 {[%emt 0:03:30]} Nf6 {[%emt 0:02:13]} 8. Nxf5 {[%emt 0:06:54]} Qxf5 {[%emt 0:00:12] White has an edge.} 9. Bd3 {[%emt 0:02:26]} Qd5 {[%emt 0:00:39]} 10. O-O {[%emt 0:03:08][%cal Od1b3]} O-O-O {[%emt 0:01:33]} 11. Be2 {[%emt 0:03:18] A strong pair of Bishops.} Qxd1 {[%emt 0:02:38]} 12. Rxd1 {[%emt 0:00:37]} Rxd1+ {[%emt 0:01:52]} 13. Bxd1 {[%emt 0:00:02]} Nd5 {[%emt 0:00:09]} 14. Bd2 {[%emt 0:09:46]} e6 {[%emt 0:02:53] [#]} 15. c4 $146 {[%emt 0:07:43]} ({Predecessor:} 15. Be2 Be7 16. g3 Rd8 17. Be1 Nb6 18. Nd2 Ne5 19. a4 Nd3 20. a5 Na8 21. Nc4 Nxe1 22. Rxe1 {½-½ Tiviakov,S (2588)-Smith,B (2453) Zagreb Hulak Memorial op 1st 2016 (5)}) 15... Ndb4 {[%emt 0:04:38]} 16. Nc3 {[%emt 0:04:11]} Nd3 {[%emt 0:04:30]} 17. Na4 {[%emt 0:01:37]} (17. Be2 $5 {[%cal Re2d3]} Be7 18. Nd5 $11 (18. Bxd3 Rd8 $11)) 17... Nce5 {[%emt 0:05:53]} 18. b3 {[%emt 0:08:09]} Be7 {[%emt 0:03:10]} 19. Be2 {[%emt 0:04:08]} Rd8 {[%emt 0:01:27]} 20. Be3 {[%emt 0:01:01] White is weak on the dark squares} Nc6 {[%emt 0:05:36]} 21. Rd1 {[%emt 0:02:29]} Ndb4 {[%emt 0:04:01]} 22. a3 {[%emt 0:09:18]} (22. Nc3 $11) 22... Nc2 $17 {[%emt 0:03:08]} 23. Rxd8+ {[%emt 0:02:27]} Kxd8 {[%emt 0:00:40]} 24. b4 {[%emt 0:03:08]} Nxa3 {[%emt 0:04:33]} 25. b5 {[%emt 0:01:41]} Na5 {[%emt 0:05:14]} 26. c5 {[%emt 0:04:50][%cal Oc5c6]} Nc2 {[%emt 0:04:18]} 27. Bf4 {[%emt 0:02:44]} Nd4 {[%emt 0:01:32]} 28. Bd3 {[%emt 0:02:19]} Nab3 {[%emt 0:02:36]} 29. b6 {[%emt 0:02:27]} (29. Be5 $17) 29... axb6 {[%emt 0:03:16]} ({Don't play} 29... Bxc5 30. Bc7+ (30. Bxh7 $2 {is the wrong capture.} Bxb6 31. Bg5+ f6 $19) (30. Nxc5 axb6 31. Bg5+ Kc7 $18) 30... Kc8 31. Nxc5 $18 (31. Bxh7 $2 axb6 32. Bxb6 Bxb6 $19)) ({Black should try} 29... a5 $19 30. Be5 Nxc5 31. Nxc5 Bxc5 32. Bxg7 Nc6 33. Bxh7 f5 34. Bf6+ Kd7) 30. cxb6 {[%emt 0:00:07]} Kc8 {[%emt 0:02:13]} 31. Be5 {[%emt 0:02:51]} g6 $1 {[%emt 0:02:59]} 32. Bc4 {[%emt 0:01:21]} (32. Bf4 $17) 32... f6 {[%emt 0:01:35]} (32... Nd2 $1 $19 {And now ...Nc6 would win.} 33. Bxd4 Nxc4) 33. Bf4 {[%emt 0:01:59]} Nc5 {[%emt 0:01:19]} ({Better is} 33... Kd7 $17 34. Be3 Bd6) 34. Nc3 {[%emt 0:01:48]} (34. Be3 $15) 34... Bd8 {[%emt 0:01:08]} 35. Be3 {[%emt 0:00:26]} Ndb3 {[%emt 0:02:49]} (35... Ncb3 $1 $17) 36. Ne4 $1 $11 {[%emt 0:00:42][%mdl 64] Deflection} Na5 $2 {[%emt 0:04:12]} (36... Be7 $15 {keeps the upper hand.}) 37. Nd6+ $18 {[%emt 0:01:05]} (37. Bxc5 $2 {too greedy.} Nxc4 38. f4 f5 $19) 37... Kd7 {[%emt 0:00:17]} 38. Bxc5 {[%emt 0:00:06] aiming for Bb5+.} Kc6 {[%emt 0:01:41] [#]} 39. Ba3 $1 {[%emt 0:01:32]} Nxc4 {[%emt 0:04:05]} 40. Nxc4 {[%emt 0:00:00]} Bxb6 {[%emt 0:00:00]} 41. Be7 {[%emt 0:01:25]} ({White should play} 41. Nxb6 $18 Kxb6 42. f4) 41... Bd4 $16 {[%emt 0:01:16]} 42. Kf1 {[%emt 0:00:41]} b5 {[%emt 0:00:57]} 43. Ne3 {[%emt 0:01:20]} Bc3 {[%emt 0:01:25]} 44. Ke2 {[%emt 0:00:53]} Kd7 {[%emt 0:03:23]} 45. Bf8 {[%emt 0:01:17]} Kc6 {[%emt 0:00:52]} (45... Be5 $16 {was necessary.} 46. Kd3 f5) 46. Kd3 $18 {[%emt 0:00:39]} Be1 {[%emt 0:01:12]} 47. f3 {[%emt 0:00:19]} Ba5 {[%emt 0:02:32]} 48. Be7 {[%emt 0:04:10]} (48. Nc2 $18) 48... f5 $16 {[%emt 0:00:39]} 49. Nc2 {[%emt 0:01:08]} e5 {[%emt 0:00:52] Dodges Nd4+} 50. Ne3 {[%emt 0:01:48]} Bb6 {[%emt 0:02:09]} 51. Nc2 {[%emt 0:01:45]} Ba5 $1 {[%emt 0:00:29]} 52. Bb4 {[%emt 0:01:26]} Bb6 {[%emt 0:00:20]} 53. g4 {[%emt 0:00:44]} Kd5 {[%emt 0:04:33]} 54. Bd2 {[%emt 0:04:37]} (54. Ne3+ $16 Ke6 55. Bf8) 54... e4+ $11 {[%emt 0:00:30]} 55. fxe4+ {[%emt 0:00:39]} fxe4+ {[%emt 0:00:13]} 56. Ke2 {[%emt 0:00:41]} Kc4 $2 {[%emt 0:00:48]} (56... Bc5 $11 {and Black has nothing to worry.}) 57. Na3+ $18 {[%emt 0:00:47]} Kc5 $2 {[%emt 0:01:16] [#]} (57... Kd5 58. Nxb5 Ke5) 58. Be3+ $1 {[%emt 0:01:22]} Kc6 {[%emt 0:00:06]} 59. Bxb6 {[%emt 0:00:16]} Kxb6 {[%emt 0:00:05][%mdl 4096] Endgame KN-KP} 60. Ke3 {[%emt 0:00:06]} b4 {[%emt 0:01:30]} 61. Nc4+ {[%emt 0:03:36]} Kc5 {[%emt 0:00:46]} 62. Nd2 {[%emt 0:00:28]} Kd5 {[%emt 0:00:20]} 63. Nxe4 $2 {[%emt 0:00:45] KN-K3P} (63. g5 {[%cal Oh2h3] Threatens to win with h3!} Ke5 64. h4) 63... b3 {[%emt 0:01:00]} 64. Nd2 {[%emt 0:03:28]} b2 {[%emt 0:00:07]} 65. h4 $2 {[%emt 0:02:23]} (65. Nb1 $18 {Black must now prevent Nd2.} h5 66. gxh5 gxh5 67. Nd2) 65... h6 $1 $11 {[%emt 0:00:22] The position is equal.} 66. h5 {[%emt 0:01:02]} gxh5 {[%emt 0:00:34]} 67. gxh5 {[%emt 0:00:07]} Ke5 {[%emt 0:00:02]} 68. Nc4+ {[%emt 0:01:12]} Kd5 {[%emt 0:00:09] Weighted Error Value: White=0.20 (precise) /Black=0.35} 1/2-1/2

[Event "European Women-ch 2023"]
[Site "Petrovac"]
[Date "2023.03.25"]
[Round "7.19"]
[White "Cyfka, Karina"]
[Black "Dwilewicz, Katarzyna"]
[Result "1-0"]
[Annotator "TA"]
[ECO "A46"]
[WhiteElo "2350"]
[BlackElo "2114"]
[PlyCount "83"]
[EventDate "2023.03.15"]
[EventType "swiss"]
[EventCountry "MNE"]
[SourceTitle "playchess.com"]
[Source "ChessBase"]
[SourceQuality "1"]
[TimeControl "40/5400+30:1800+30"]

{[%evp 9,83,13,42,18,60,0,12,0,35,30,56,60,66,61,61,56,64,43,62,56,59,49,50,40,40,45,88,45,112,113,120,113,114,121,150,149,195,162,264,270,270,266,381,366,412,390,462,413,688,498,524,527,516,496,476,431,449,453,550,535,633,618,658,650,839,745,694,597,618,610,595,577,4702,2093,1419,1325]} 1. d4 {[%emt 0:00:02]} Nf6 {[%emt 0:00:08]} 2. Nf3 {[%emt 0:00:16]} e6 {[%emt 0:00:09][%cal Be7e6,Be6d5][%mdl 32]} 3. Bg5 {[%emt 0:00:34]} c5 {[%emt 0:00:15]} 4. d5 {[%emt 0:00:19]} exd5 {[%emt 0:08:04]} 5. e3 {[%emt 0:00:21]} d6 {[%emt 0:05:22]} (5... Be7 $5 {[%cal Rd8b6]}) 6. Nc3 {[%emt 0:02:25][%cal Og5f6] A46: 1 d4 Nf6 2 Nf3 e6: Torre, London and Colle Systems.} Be6 {[%emt 0:02:22]} 7. Bb5+ {[%emt 0:03:25]} (7. Bxf6 $14 gxf6 8. Be2 (8. Nxd5 Bg7 $14)) 7... Nc6 $11 {[%emt 0:02:52]} 8. Bxf6 {[%emt 0:04:12] The position is equal.} Qxf6 {[%emt 0:00:38]} 9. Nxd5 {[%emt 0:00:38]} Bxd5 {[%emt 0:04:35]} (9... Qxb2 $2 10. Rb1 $18 (10. Bxc6+ bxc6 11. Rb1 Qxb1 $16) (10. Bxc6+ bxc6 11. Rb1 Qxb1 $16)) 10. Qxd5 {[%emt 0:00:18]} Rc8 {[%emt 0:00:17]} 11. c3 {[%emt 0:10:41]} Be7 {[%emt 0:00:46] [#]} 12. O-O $146 {[%emt 0:01:56]} ({Predecessor:} 12. h4 O-O 13. Ng5 g6 14. f4 Qg7 15. O-O-O a6 16. Bd3 Bxg5 17. hxg5 Rfe8 18. Rh3 {1-0 Anton Guijarro,D (2658)-Ponizil,C (2506) CZE-chT 2122 2021 (8.3)}) 12... O-O {[%emt 0:02:05]} 13. Rad1 {[%emt 0:03:29]} Rfd8 {[%emt 0:03:59]} 14. Nd2 {[%emt 0:03:49][%cal Bf3d2,Bd2e4,Be4g3][%mdl 32]} a6 {[%emt 0:07:18]} 15. Be2 {[%emt 0:02:53]} Qe6 {[%emt 0:08:51]} 16. Bc4 {[%emt 0:07:32]} Qxd5 {[%emt 0:02:21]} 17. Bxd5 {[%emt 0:00:28]} Kf8 {[%emt 0:00:57]} 18. Ne4 {[%emt 0:05:13]} Rc7 {[%emt 0:02:44] Black is on the road to losing.} ({Black should try} 18... Ne5 $1 $14) 19. f4 $16 {[%emt 0:08:29]} Nb8 {[%emt 0:05:52]} 20. g4 {[%emt 0:00:31][%cal Bg2g4,Bg4g5][%mdl 32]} Nd7 {[%emt 0:01:44]} 21. g5 {[%emt 0:01:25]} Ke8 {[%emt 0:09:00]} 22. Rf3 {[%emt 0:06:00] White has more active pieces. The black rooks are badly placed.} Nf8 {[%emt 0:08:43]} (22... Kf8 $16 23. f5 Ne5) 23. Ng3 {[%emt 0:03:30]} g6 {[%emt 0:02:50]} (23... Nd7 {was called for.} 24. Ne4 Nb6) 24. Ne4 $18 {[%emt 0:00:40]} Ne6 {[%emt 0:03:28]} 25. Rh3 {[%emt 0:05:43]} Nf8 {[%emt 0:00:28]} (25... h5 {might work better.} 26. gxh6 Kd7) 26. Rf1 {[%emt 0:00:11]} Rdd7 {[%emt 0:06:53]} 27. f5 {[%emt 0:01:24]} Bd8 {[%emt 0:05:48] Black is weak on the light squares} 28. fxg6 {[%emt 0:01:44]} fxg6 {[%emt 0:02:00] [#]} (28... Nxg6 $142 29. Rf5 Kf8 30. Rxh7 Kg8) 29. Bf7+ $1 {[%emt 0:04:26][%mdl 576] Decoy. White is clearly winning.} Rxf7 {[%emt 0:01:20]} (29... Ke7 30. Bd5) 30. Nxd6+ {[%emt 0:00:12]} Kd7 {[%emt 0:00:31]} 31. Nxf7 {[%emt 0:00:21]} Be7 {[%emt 0:00:16]} 32. Ne5+ {[%emt 0:04:13]} Ke6 {[%emt 0:00:08]} 33. Ng4 {[%emt 0:01:05]} Rd7 {[%emt 0:01:26]} 34. Rhf3 {[%emt 0:00:33]} Rd8 {[%emt 0:00:19]} 35. Rf4 {[%emt 0:01:16]} Rd5 {[%emt 0:01:34]} 36. h4 {[%emt 0:02:00]} (36. Rxf8 Bxf8 37. Rxf8 Rxg5 38. Rf6+ Kd7 $18) 36... Nd7 {[%emt 0:00:10]} 37. Re4+ {[%emt 0:00:43]} Kd6 {[%emt 0:00:05]} 38. Nf6 {[%emt 0:00:49]} Bxf6 {[%emt 0:01:07]} 39. gxf6 {[%emt 0:00:21] f7 is the strong threat.} Re5 {[%emt 0:00:55] Prevents f7.} 40. Rd1+ {[%emt 0:00:00]} Ke6 {[%emt 0:00:00] [#]} 41. Rxd7 $1 {[%emt 0:02:36][%mdl 64] Double Attack} Rxe4 {[%emt 0:00:27]} 42. Re7+ {[%emt 0:00:08] Weighted Error Value: White=0.16 (very precise) /Black=0.42} ({Weaker is} 42. Rxh7 Kxf6 43. Rxb7 Rg4+ 44. Kf2 Rxh4 $16) 1-0

[Event "European Women-ch 2023"]
[Site "Petrovac"]
[Date "2023.03.25"]
[Round "7.19"]
[White "Mashchenko, Tamila"]
[Black "Karaivanova, Petya"]
[Result "0-1"]
[Annotator "TA"]
[ECO "D35"]
[WhiteElo "1956"]
[BlackElo "1875"]
[PlyCount "60"]
[EventDate "2023.03.15"]
[EventType "swiss"]
[EventCountry "MNE"]
[SourceTitle "playchess.com"]
[Source "ChessBase"]
[SourceQuality "1"]
[TimeControl "40/5400+30:1800+30"]

{[%evp 15,60,26,21,27,29,29,31,26,18,13,15,-10,0,-6,29,20,28,22,18,8,41,50,94,83,91,-49,-46,-48,-37,-97,-92,-414,-416,-402,-90,-90,-90,-87,-87,-495,-503,-502,-510,-511,-505,-1078,-1048]} 1. d4 {[%emt 0:07:50]} d5 {[%emt 0:00:04]} 2. c4 {[%emt 0:00:05]} e6 {[%emt 0:00:03]} 3. Nc3 {[%emt 0:00:04]} Nf6 {[%emt 0:00:04]} 4. cxd5 {[%emt 0:00:08]} exd5 {[%emt 0:00:04]} 5. Bg5 {[%emt 0:00:04]} Be7 {[%emt 0:00:14]} 6. e3 {[%emt 0:00:09]} c6 {[%emt 0:00:04]} 7. Bd3 {[%emt 0:00:11]} h6 {[%emt 0:00:06]} 8. Bf4 {[%emt 0:00:36]} O-O {[%emt 0:05:12]} 9. h3 {[%emt 0:00:29] D35: Queen's Gambit Declined: Exchange Variation.} Re8 {[%emt 0:00:15]} 10. Nf3 {[%emt 0:00:39] 10.Qc2 might become the main line.} Bd6 {[%emt 0:06:52]} 11. Bxd6 {[%emt 0:04:12] White is slightly better.} Qxd6 {[%emt 0:00:04]} 12. Qc2 {[%emt 0:01:26]} Nbd7 {[%emt 0:03:30]} 13. O-O-O {[%emt 0:01:41]} b5 {[%emt 0:00:51][%cal Bb7b5,Bb5b4][%mdl 32]} 14. g4 {[%emt 0:02:17]} b4 {[%emt 0:05:52]} 15. Na4 {[%emt 0:06:31]} Ne4 {[%emt 0:08:48] [#]} 16. Kb1 $146 {[%emt 0:07:05]} ({Predecessor:} 16. Bxe4 dxe4 17. Nd2 Qd5 18. Nb3 a5 19. Kb1 Ba6 20. Nbc5 Bb5 21. Nxd7 Bd3 22. Rxd3 exd3 {½-½ Vesely,V (2032)-Kosek,J (2070) CZE-chT2D 1617 2016 (3.5)}) 16... Qf6 {[%emt 0:05:53]} 17. Bxe4 {[%emt 0:07:38]} dxe4 {[%emt 0:00:14]} 18. Nd2 {[%emt 0:01:06]} Qxf2 {[%emt 0:09:10]} 19. Qxc6 {[%emt 0:08:06]} (19. Nxe4 $2 Qxc2+ 20. Kxc2 Rxe4 $19) 19... Rb8 {[%emt 0:02:52]} 20. Rhf1 {[%emt 0:07:54]} (20. Nc5 $16 Qxe3 21. Nxd7 Bxd7 22. Qxd7 Qd3+ 23. Ka1) 20... Qxe3 $15 {[%emt 0:04:18] Strongly threatening ...Qd3+.} 21. Nc4 {[%emt 0:00:46]} Qg5 {[%emt 0:02:53] ...e3 would be deadly.} 22. Nd6 {[%emt 0:22:18]} (22. Ne5 $1 $15 Nf6 23. Nc5 (23. Rxf6 $2 Bb7 $19)) 22... Qg6 $1 $17 {[%emt 0:05:45] And now ...e3+ would win.} 23. d5 $2 {[%emt 0:04:32][%mdl 8192]} (23. Rxf7 $2 {is the wrong capture.} Re6 24. Qc4 Kh7 25. Nxc8 Qxf7 $19) (23. Rde1 $17 {is more resistant.}) 23... e3+ $19 {[%emt 0:19:04][%cal Be4e3,Be3e2][%mdl 32]} 24. Ka1 {[%emt 0:00:29] [#]} Bb7 $2 {[%emt 0:07:46]} 25. Qxd7 $17 {[%emt 0:05:31]} Red8 $36 {[%emt 0:01:26][%cal Be8d8,Bd8d6,Bd6d5][%mdl 2080] Black is in control. The board is on fire.} 26. Qxf7+ {[%emt 0:06:25]} Qxf7 {[%emt 0:00:27]} 27. Rxf7 {[%emt 0:00:11][%mdl 8192] [#]} (27. Nxf7 $17 e2 28. Nxd8 Rxd8 29. b3) 27... e2 $1 $19 {[%emt 0:01:26][%cal Re2d1] Black is clearly winning.} ({Weaker is} 27... Rxd6 28. Re7 $17) 28. Re1 {[%emt 0:00:11]} Rxd6 {[%emt 0:00:05]} 29. Re7 {[%emt 0:00:18]} Ba6 {[%emt 0:00:17]} ({Worse is} 29... Bxd5 30. R7xe2 Rbd8 31. Rh2 $17) 30. Nc5 {[%emt 0:03:48]} (30. Kb1 $142 Rxd5 31. R1xe2 Bd3+ 32. Kc1 Bxe2 33. Rxe2) 30... Rxd5 {[%emt 0:02:31] Weighted Error Value: White=0.84/Black=0.25 (precise)} 0-1